Workbook

Sheet Mitchell Low Sulfur 2021
B3: Mitchell Low Sulfur - 2021 CAPP
C8: Offer / Plant / Year | D8: Mine | E8: Quantity | G8: Coal Price | H8: Transportation | K8: Offered Quality | O8: Quality Adjusted Delivered Pricing
E9: Tons | F9: BTU | G9: Coal Price | H9: River / Rail | I9: MP / District | J9: Rate | K9: Btu | L9: lbs. SO2 | M9: Sulfur % | N9: Ash % | O9: Quality Adj. | P9: Quality Adjusted | Q9: Delivered | R9: Comments
P10: Delivered Cost | Q10: $MMBTU
C11: Argus Market 09.10.21 | D11: CAPP | G11: 66.15 | H11: Barge | I11: BSR | J11: 9.64 | K11: 12000 | L11: 1.67 | M11: 0.01 | N11: 0.1 | O11: =+((1-$E$19)*(L11*K11*$E$20)/1000000)+(($E$19*L11*K11*$E$21)/1000000) -> 4.402329244 | P11: =G11+J11+O11 -> 80.19232924 | Q11: =P11/(K11/500) -> 3.341347052
C12: Argus Market 09.24.21 | D12: CAPP | G12: 70.75 | H12: Barge | I12: BSR | J12: 9.64 | K12: 12000 | L12: 1.67 | M12: 0.01 | N12: 0.1 | O12: 4.402329244 | P12: =G12+J12+O12 -> 84.79232924 | Q12: =P12/(K12/500) -> 3.533013719
C18: Mitchell
C19: FGD Removal Efficiency | E19: 0.9883
C20: SO2 Allowance Cost | E20: 1.5
C21: Removal Cost $/Ton | E21: 222.26

Sheet Mitchell Low Sulfur 2022
B1: Mitchell Low Sulfur - 2022 CAPP
C4: Offer / Plant / Year | D4: Mine | E4: Quantity | F4: Coal Price | G4: Transportation | J4: Offered Quality | N4: Quality Adjusted Delivered Pricing
E5: Tons | F5: Coal Price | G5: River / Rail | H5: MP / District | I5: Rate | J5: Btu | K5: lbs. SO2 | L5: Sulfur % | M5: Ash % | N5: Quality Adj. | O5: Quality Adjusted | P5: Delivered | Q5: Comments
O6: Delivered Cost | P6: $MMBTU
C7: Argus Market 09.10.21 | D7: CAPP | F7: 66.15 | G7: Barge | H7: BSR | I7: 9.64 | J7: 12000 | K7: 1.67 | L7: 0.01 | M7: 0.1 | N7: =+((1-$E$19)*(K7*J7*$E$20)/1000000)+(($E$19*K7*J7*$E$21)/1000000) -> 4.402329244 | O7: =F7+I7+N7 -> 80.19232924 | P7: =O7/(J7/500) -> 3.341347052
C8: Argus Market 09.24.21 | D8: CAPP | F8: 70.75 | G8: Barge | H8: BSR | I8: 9.64 | J8: 12000 | K8: 1.67 | L8: 0.01 | M8: 0.1 | N8: 4.402329244 | O8: 84.79232924 | P8: 3.533013719
C18: Mitchell
C19: FGD Removal Efficiency | E19: 0.9883
C20: SO2 Allowance Cost | E20: 1.5
C21: Removal Cost $/Ton | E21: 222.26

Sheet Mitchell Low Sulfur 2023
B1: Mitchell Low Sulfur - 2023 CAPP
C4: Offer / Plant / Year | D4: Mine | E4: Quantity | G4: Coal Price | H4: Transportation | K4: Offered Quality | O4: Quality Adjusted Delivered Pricing
E5: Tons | F5: BTU | G5: Coal Price | H5: River / Rail | I5: MP / District | J5: Rate | K5: Btu | L5: lbs. SO2 | M5: Sulfur % | N5: Ash % | O5: Quality Adj. | P5: Quality Adjusted | Q5: Delivered | R5: Comments
P6: Delivered Cost | Q6: $MMBTU
C7: Argus Market 09.10.21 | D7: CAPP | G7: 64.65 | H7: Barge | I7: BSR | J7: 10.02 | K7: 12000 | L7: 1.67 | M7: 0.01 | N7: 0.1 | O7: =+((1-$E$16)*(L7*K7*$E$17)/1000000)+(($E$16*L7*K7*$E$18)/1000000) -> 4.402329244 | P7: =G7+J7+O7 -> 79.07232924 | Q7: =P7/(K7/500) -> 3.294680385
C8: Argus Market 09.24.21 | D8: CAPP | G8: 68 | H8: Barge | I8: BSR | J8: 10.02 | K8: 12000 | L8: 1.67 | M8: 0.01 | N8: 0.1 | O8: 4.402329244 | P8: 82.42232924 | Q8: 3.434263719
C15: Mitchell
C16: FGD Removal Efficiency | E16: 0.9883
C17: SO2 Allowance Cost | E17: 1.5
C18: Removal Cost $/Ton | E18: 222.26

Sheet Mitchell Low Sulfur 2024
B1: Mitchell Low Sulfur - 2024 CAPP
C4: Offer / Plant / Year | D4: Mine | E4: Quantity | G4: Coal Price | H4: Transportation | K4: Offered Quality | O4: Quality Adjusted Delivered Pricing
E5: Tons | F5: BTU | G5: Coal Price | H5: River / Rail | I5: MP / District | J5: Rate | K5: Btu | L5: lbs. SO2 | M5: Sulfur % | N5: Ash % | O5: Quality Adj. | P5: Quality Adjusted | Q5: Delivered | R5: Comments
P6: Delivered Cost | Q6: $MMBTU
C7: Argus Market 09.10.21 | D7: CAPP | G7: 64.65 | H7: Barge | I7: BSR | J7: 10.02 | K7: 12000 | L7: 1.67 | M7: 0.01 | N7: 0.1 | O7: =+((1-$E$14)*(L7*K7*$E$15)/1000000)+(($E$14*L7*K7*$E$16)/1000000) -> 4.402329244 | P7: =G7+J7+O7 -> 79.07232924 | Q7: =P7/(K7/500) -> 3.294680385 | R7: 2024 Prices not quoted yet; using 2023
C8: Argus Market 09.24.21 | D8: CAPP | G8: 68 | H8: Barge | I8: BSR | J8: 10.02 | K8: 12000 | L8: 1.67 | M8: 0.01 | N8: 0.1 | O8: 4.402329244 | P8: =G8+J8+O8 -> 82.42232924 | Q8: =P8/(K8/500) -> 3.434263719 | R8: 2024 Prices not quoted yet; using 2023
C13: Mitchell
C14: FGD Removal Efficiency | E14: 0.9883
C15: SO2 Allowance Cost | E15: 1.5
C16: Removal Cost $/Ton | E16: 222.26

Sheet Mitchell Low Sulfur 2025
B1: Mitchell Low Sulfur - 2025 CAPP
C4: Offer / Plant / Year | D4: Mine | E4: Quantity | G4: Coal Price | H4: Transportation | K4: Offered Quality | O4: Quality Adjusted Delivered Pricing
E5: Tons | F5: BTU | G5: Coal Price | H5: River / Rail | I5: MP / District | J5: Rate | K5: Btu | L5: lbs. SO2 | M5: Sulfur % | N5: Ash % | O5: Quality Adj. | P5: Quality Adjusted | Q5: Delivered | R5: Comments
P6: Delivered Cost | Q6: $MMBTU
C10: Mitchell
C11: FGD Removal Efficiency | E11: 0.9883
C12: SO2 Allowance Cost | E12: 1.5
C13: Removal Cost $/Ton | E13: 222.26

Sheet Mitchell Low Sulfur 2026
B1: Mitchell Low Sulfur - 2026 CAPP
C4: Offer / Plant / Year | D4: Mine | E4: Quantity | G4: Coal Price | H4: Transportation | K4: Offered Quality | O4: Quality Adjusted Delivered Pricing
E5: Tons | F5: BTU | G5: Coal Price | H5: River / Rail | I5: MP / District | J5: Rate | K5: Btu | L5: lbs. SO2 | M5: Sulfur % | N5: Ash % | O5: Quality Adj. | P5: Quality Adjusted | Q5: Delivered | R5: Comments
P6: Delivered Cost | Q6: $MMBTU
C10: Mitchell
C11: FGD Removal Efficiency | E11: 0.9883
C12: SO2 Allowance Cost | E12: 1.5
C13: Removal Cost $/Ton | E13: 222.26

Sheet Mitchell High Sulfur 2021
B1: Mitchell High Sulfur - 2021 NAPP
C4: Offer / Plant / Year | D4: Mine | E4: Quantity | F4: Coal Price | G4: Transportation | J4: Offered Quality | N4: Quality Adjusted Delivered Pricing
E5: Tons | F5: Coal Price | G5: River / Rail | H5: MP / District | I5: Rate | J5: Btu | K5: lbs. SO2 | L5: Sulfur % | M5: Ash % | N5: Quality Adj. | O5: Quality Adjusted | P5: Delivered | Q5: Comments
O6: Delivered Cost | P6: $MMBTU
C7: Argus Market 09.10.21 | D7: NAPP | F7: 59 | G7: Barge | H7: NACCO #1 - Powhatan Pt. LO, OH | I7: 1 | J7: 12500 | K7: 6 | L7: 0.0375 | M7: 0.1 | N7: =+((1-$E$13)*(K7*J7*$E$14)/1000000)+(($E$13*K7*J7*$E$15)/1000000) -> 16.4757831 | O7: =F7+I7+N7 -> 76.4757831 | P7: =O7/(J7/500) -> 3.059031324
C8: Argus Market 09.24.21 | D8: NAPP | F8: 63.5 | G8: Barge | H8: NACCO #1 - Powhatan Pt. LO, OH | I8: 1 | J8: 12500 | K8: 6 | L8: 0.0375 | M8: 0.1 | N8: =+((1-$E$13)*(K8*J8*$E$14)/1000000)+(($E$13*K8*J8*$E$15)/1000000) -> 16.4757831 | O8: =F8+I8+N8 -> 80.9757831 | P8: =O8/(J8/500) -> 3.239031324
C12: Mitchell
C13: FGD Removal Efficiency | E13: 0.9883
C14: SO2 Allowance Cost | E14: 1.5
C15: Removal Cost $/Ton | E15: 222.26

Sheet Mitchell High Sulfur 2022
B1: Mitchell High Sulfur - 2022 NAPP
C4: Offer / Plant / Year | D4: Mine | E4: Quantity | F4: Coal Price | G4: Transportation | J4: Offered Quality | N4: Quality Adjusted Delivered Pricing
E5: Tons | F5: Coal Price | G5: River / Rail | H5: MP / District | I5: Rate | J5: Btu | K5: lbs. SO2 | L5: Sulfur % | M5: Ash % | N5: Quality Adj. | O5: Quality Adjusted | P5: Delivered | Q5: Comments
O6: Delivered Cost | P6: $MMBTU
C7: Argus Market 09.10.21 | D7: NAPP | F7: 47.25 | G7: Barge | H7: NACCO #1 - Powhatan Pt. LO, OH | I7: 1 | J7: 12500 | K7: 6 | L7: 0.0375 | M7: 0.1 | N7: =+((1-$E$16)*(K7*J7*$E$17)/1000000)+(($E$16*K7*J7*$E$18)/1000000) -> 16.4757831 | O7: =F7+I7+N7 -> 64.7257831 | P7: =O7/(J7/500) -> 2.589031324
C8: Argus Market 09.24.21 | D8: NAPP | F8: 51 | G8: Barge | H8: NACCO #1 - Powhatan Pt. LO, OH | I8: 1 | J8: 12500 | K8: 6 | L8: 0.0375 | M8: 0.1 | N8: =+((1-$E$16)*(K8*J8*$E$17)/1000000)+(($E$16*K8*J8*$E$18)/1000000) -> 16.4757831 | O8: =F8+I8+N8 -> 68.4757831 | P8: =O8/(J8/500) -> 2.739031324
C15: Mitchell
C16: FGD Removal Efficiency | E16: 0.9883
C17: SO2 Allowance Cost | E17: 1.5
C18: Removal Cost $/Ton | E18: 222.26

Sheet Mitchell High Sulfur 2023
B1: Mitchell High Sulfur - 2023 NAPP
C4: Offer / Plant / Year | D4: Mine | E4: Quantity | F4: Coal Price | G4: Transportation | J4: Offered Quality | N4: Quality Adjusted Delivered Pricing
E5: Tons | F5: Coal Price | G5: River / Rail | H5: MP / District | I5: Rate | J5: Btu | K5: lbs. SO2 | L5: Sulfur % | M5: Ash % | N5: Quality Adj. | O5: Quality Adjusted | P5: Delivered | Q5: Comments
O6: Delivered Cost | P6: $MMBTU
C7: Argus Market 09.10.21 | D7: NAPP | F7: 53 | G7: Barge | H7: NACCO #1 - Powhatan Pt. LO, OH | I7: 1 | J7: 12500 | K7: 6 | L7: 0.0375 | M7: 0.1 | N7: =+((1-$E$17)*(K7*J7*$E$18)/1000000)+(($E$17*K7*J7*$E$19)/1000000) -> 16.4757831 | O7: =F7+I7+N7 -> 70.4757831 | P7: =O7/(J7/500) -> 2.819031324
C9: Argus Market 09.24.21 | D9: NAPP | F9: 56.5 | G9: Barge | H9: NACCO #1 - Powhatan Pt. LO, OH | I9: 1 | J9: 12500 | K9: 6 | L9: 0.0375 | M9: 0.1 | N9: =+((1-$E$17)*(K9*J9*$E$18)/1000000)+(($E$17*K9*J9*$E$19)/1000000) -> 16.4757831 | O9: =F9+I9+N9 -> 73.9757831 | P9: =O9/(J9/500) -> 2.959031324
C16: Mitchell
C17: FGD Removal Efficiency | E17: 0.9883
C18: SO2 Allowance Cost | E18: 1.5
C19: Removal Cost $/Ton | E19: 222.26

Sheet Mitchell High Sulfur 2024
B1: Mitchell High Sulfur - 2024 NAPP
C4: Offer / Plant / Year | D4: Mine | E4: Quantity | F4: Coal Price | G4: Transportation | J4: Offered Quality | N4: Quality Adjusted Delivered Pricing
E5: Tons | F5: Coal Price | G5: River / Rail | H5: MP / District | I5: Rate | J5: Btu | K5: lbs. SO2 | L5: Sulfur % | M5: Ash % | N5: Quality Adj. | O5: Quality Adjusted | P5: Delivered | Q5: Comments
O6: Delivered Cost | P6: $MMBTU
C7: Argus Market 09.10.21 | D7: NAPP | F7: 53 | G7: Barge | H7: NACCO #1 - Powhatan Pt. LO, OH | I7: 1 | J7: 12500 | K7: 6 | L7: 0.0375 | M7: 0.1 | N7: =+((1-$E$15)*(K7*J7*$E$16)/1000000)+(($E$15*K7*J7*$E$17)/1000000) -> 16.4757831 | O7: =F7+I7+N7 -> 70.4757831 | P7: =O7/(J7/500) -> 2.819031324
C8: Argus Market 09.24.21 | D8: NAPP | F8: 56.5 | G8: Barge | H8: NACCO #1 - Powhatan Pt. LO, OH | I8: 1 | J8: 12500 | K8: 6 | L8: 0.0375 | M8: 0.1 | N8: 16.4757831 | O8: =F8+I8+N8 -> 73.9757831 | P8: =O8/(J8/500) -> 2.959031324
C14: Mitchell
C15: FGD Removal Efficiency | E15: 0.9883
C16: SO2 Allowance Cost | E16: 1.5
C17: Removal Cost $/Ton | E17: 222.26

Sheet Mitchell High Sulfur 2025
B1: Mitchell High Sulfur - 2025 NAPP
C4: Offer / Plant / Year | D4: Mine | E4: Quantity | F4: Coal Price | G4: Transportation | J4: Offered Quality | N4: Quality Adjusted Delivered Pricing
E5: Tons | F5: Coal Price | G5: River / Rail | H5: MP / District | I5: Rate | J5: Btu | K5: lbs. SO2 | L5: Sulfur % | M5: Ash % | N5: Quality Adj. | O5: Quality Adjusted | P5: Delivered | Q5: Comments
O6: Delivered Cost | P6: $MMBTU
C7: Argus Market 09.10.21 | D7: NAPP | F7: 53 | G7: Barge | H7: NACCO #1 - Powhatan Pt. LO, OH | I7: 1 | J7: 12500 | K7: 6 | L7: 0.0375 | M7: 0.1 | N7: =+((1-$E$15)*(K7*J7*$E$16)/1000000)+(($E$15*K7*J7*$E$17)/1000000) -> 16.4757831 | O7: =F7+I7+N7 -> 70.4757831 | P7: =O7/(J7/500) -> 2.819031324
C8: Argus Market 09.24.21 | D8: NAPP | F8: 56.5 | G8: Barge | H8: NACCO #1 - Powhatan Pt. LO, OH | I8: 1 | J8: 12500 | K8: 6 | L8: 0.0375 | M8: 0.1 | N8: 16.4757831 | O8: =F8+I8+N8 -> 73.9757831 | P8: =O8/(J8/500) -> 2.959031324
C14: Mitchell
C15: FGD Removal Efficiency | E15: 0.9883
C16: SO2 Allowance Cost | E16: 1.5
C17: Removal Cost $/Ton | E17: 222.26
